bitfinex/quotes_BTCUSD_20220201
["timestamp","ask_amount","ask_price","bid_price","bid_amount"]
[1643707293199,0.30241814,38918.0,38914.0,0.01951269]
[1643707293398,0.25648069,38917.0,38913.0,0.01874798]
[1643707293797,0.09510539,38915.0,38913.0,0.01874798]
[1643707293999,0.25648069,38917.0,38913.0,0.01874798]
[1643707294847,0.35826304,38917.0,38913.0,0.01874798]
[1643707295048,0.064248,38915.0,38913.0,0.01874798]
[1643707296052,0.064248,38915.0,38908.0,6.5094452]
[1643707296053,1.264248,38915.0,38908.0,6.5094452]
[1643707296253,0.05,38912.0,38908.0,6.5094452]
[1643707296455,0.29630346,38909.0,38908.0,6.5094452]
[1643707296849,0.34630346,38909.0,38908.0,6.5094452]
[1643707297250,0.34630346,38909.0,38908.0,6.8590942]
[1643707297950,0.34630346,38909.0,38908.0,6.5044452]
[1643707298200,0.05,38909.0,38908.0,6.5044452]
[1643707298497,0.05,38910.0,38908.0,6.5044452]
[1643707298797,0.064263,38911.0,38908.0,6.5044452]
[1643707300498,0.03830565,38910.0,38908.0,6.5044452]
[1643707300697,0.03830565,38910.0,38908.0,6.60709951]
[1643707300902,0.56531007,38918.0,38908.0,6.60709951]
[1643707301200,0.05,38912.0,38908.0,6.5044452]
[1643707301497,0.064263,38911.0,38908.0,6.5044452]
[1643707301699,0.0018841,38910.0,38908.0,6.5044452]
[1643707302150,0.40197871,38910.0,38908.0,6.5044452]
[1643707302350,0.34804466,38910.0,38908.0,6.5044452]
[1643707302548,0.1018841,38910.0,38908.0,6.5044452]
[1643707302747,0.0518841,38910.0,38908.0,6.5044452]
[1643707302947,0.05,38909.0,38908.0,6.3462452]
[1643707303148,0.0518841,38910.0,38908.0,6.3462452]
[1643707303554,0.0518841,38910.0,38908.0,5.9034452]
[1643707303555,0.85028678,38909.0,38908.0,5.9034452]
[1643707303750,0.654908,38909.0,38908.0,5.9034452]
[1643707304054,0.104908,38909.0,38908.0,5.9034452]
[1643707304248,0.954908,38909.0,38908.0,5.5982452]
[1643707304449,1.054908,38909.0,38908.0,5.5251452]
[1643707304650,1.09812607,38909.0,38908.0,5.5251452]
[1643707304849,0.24812607,38909.0,38908.0,5.5251452]
[1643707305595,0.54812607,38909.0,38908.0,5.5251452]
[1643707305796,0.01,38903.0,38892.0,0.28034669]
[1643707305997,0.01,38903.0,38893.0,0.349649]
[1643707305998,0.07427,38903.0,38893.0,0.349649]
[1643707306303,0.01997944,38898.0,38893.0,0.12854]
[1643707306498,0.01,38903.0,38895.0,0.55]
[1643707306695,0.26338208,38901.0,38894.0,0.28526416]
[1643707306895,0.26338208,38901.0,38897.0,0.01997944]
[1643707307297,0.31338208,38901.0,38897.0,0.01997944]
[1643707307898,0.08659075,38900.0,38897.0,0.01997944]
[1643707308198,0.064276,38899.0,38897.0,0.01997944]
[1643707308398,0.28617449,38899.0,38897.0,0.01997944]
[1643707308600,0.08659075,38900.0,38897.0,0.01997944]
[1643707309454,0.31338208,38901.0,38897.0,0.01997944]
[1643707310052,0.55851026,38901.0,38897.0,0.01997944]
[1643707310352,0.0951165,38898.0,38897.0,0.01997944]
[1643707310752,0.1451165,38898.0,38897.0,0.01997944]
[1643707311361,0.7,38897.0,38890.0,0.128551]
[1643707311559,0.7,38897.0,38886.0,0.192805]
[1643707311560,0.7513,38897.0,38887.0,0.064286]
[1643707311755,0.7513,38897.0,38886.0,0.42]
[1643707311756,0.09899864,38888.0,38886.0,0.42]
[1643707311953,0.09899864,38888.0,38887.0,0.349649]
[1643707312154,0.22051828,38888.0,38886.0,0.42]
[1643707312355,0.0513,38892.0,38887.0,0.26088174]
[1643707312557,0.0513,38892.0,38888.0,0.349649]
[1643707312756,2.18037944,38898.0,38889.0,0.26088174]
[1643707312954,1.42757944,38898.0,38889.0,0.26088174]
[1643707313197,1.42757944,38898.0,38890.0,0.35574332]
[1643707313497,0.36916143,38897.0,38890.0,0.35574332]
[1643707314096,0.27420333,38897.0,38890.0,0.35574332]
[1643707314497,0.27420333,38897.0,38891.0,0.23617127]
[1643707315097,0.27420333,38897.0,38890.0,0.35574332]
[1643707315297,0.27420333,38897.0,38891.0,0.22504187]
[1643707315698,0.07591929,38894.0,38888.0,0.128554]
[1643707315898,0.07591929,38894.0,38884.0,0.128566]
[1643707315899,0.07591929,38894.0,38889.0,0.349649]
[1643707316098,0.07591929,38894.0,38885.0,3.05457034]
[1643707316099,0.12591929,38894.0,38886.0,0.77509227]
[1643707316300,0.12591929,38894.0,38887.0,0.349649]
[1643707316699,0.12591929,38894.0,38890.0,0.38774741]
[1643707316959,0.12591929,38894.0,38889.0,0.064279]
[1643707317555,0.12591929,38894.0,38889.0,0.128558]
[1643707317756,0.12591929,38894.0,38890.0,0.23111047]
[1643707318158,0.05,38894.0,38892.0,0.23802147]
[1643707318359,1e-06,38897.0,38893.0,0.61427816]
[1643707318558,1e-06,38897.0,38893.0,0.72985016]
[1643707318760,1e-06,38897.0,38894.0,0.1]
[1643707318957,1e-06,38897.0,38893.0,0.72985016]
[1643707318958,1e-06,38897.0,38895.0,0.400949]
[1643707320899,1.63905976,38909.0,38895.0,0.400949]
[1643707321100,1.63905976,38909.0,38895.0,0.0513]
[1643707321300,0.41949909,38905.0,38895.0,0.0513]
[1643707321502,0.4009762,38896.0,38894.0,0.06427]
[1643707321706,0.2009762,38896.0,38890.0,0.128547]
[1643707321902,0.2009762,38896.0,38890.0,0.113547]
[1643707322101,0.1509762,38896.0,38890.0,0.177824]
[1643707322499,0.1509762,38896.0,38891.0,0.64644793]
[1643707322700,0.2009762,38896.0,38890.0,0.177824]
[1643707322904,0.2009762,38896.0,38891.0,0.349649]
[1643707323400,0.2009762,38896.0,38890.0,0.108547]
[1643707323606,0.2009762,38896.0,38885.0,1.64431138]
[1643707323607,1.39878255,38895.0,38885.0,1.64431138]
[1643707323817,0.26016592,38894.0,38885.0,1.64431138]
[1643707324006,0.064298,38892.0,38885.0,1.64431138]
[1643707324208,0.106208,38891.0,38885.0,1.64431138]
[1643707324472,0.106208,38891.0,38874.0,0.128598]
[1643707324473,0.37745319,38880.0,38874.0,0.128598]
[1643707324675,0.37745319,38880.0,38864.0,0.1]
[1643707324676,1.46016592,38879.0,38864.0,0.14991366]
[1643707324869,1.46016592,38879.0,38861.0,0.99672]
[1643707324870,1.25,38877.0,38861.0,0.99672]
[1643707325079,1.25,38877.0,38839.0,2.9136187]
[1643707325080,0.06434168,38873.0,38839.0,2.9136187]
[1643707325286,0.06434168,38873.0,38840.0,0.09260583]
[1643707325287,1.2,38847.0,38840.0,0.09260583]
[1643707325468,0.6412,38844.0,38828.0,0.19472402]
[1643707325668,0.6412,38844.0,38824.0,0.24110087]
[1643707325669,0.6412,38839.0,38824.0,0.24110087]
[1643707325868,0.6412,38839.0,38815.0,0.0013]
[1643707325869,0.27585633,38822.0,38807.0,0.05]
[1643707326069,0.27585633,38822.0,38806.0,0.0206969]
[1643707326070,0.07774194,38822.0,38806.0,0.0206969]
[1643707326268,0.3058585,38821.0,38806.0,0.0206969]
[1643707326472,1.25,38819.0,38814.0,2.56408508]
[1643707326667,0.41637392,38818.0,38814.0,1.43558508]
[1643707326872,0.27956456,38816.0,38795.0,0.025]
[1643707327074,0.1,38809.0,38795.0,0.034018]
[1643707327271,0.1,38809.0,38792.0,0.8838]
[1643707327272,0.067427,38801.0,38792.0,0.531612]
[1643707327475,0.106208,38800.0,38793.0,0.08629145]
[1643707327675,0.012519,38801.0,38800.0,1.05]
[1643707327875,0.012519,38801.0,38789.0,0.189482]
[1643707327876,0.012519,38802.0,38795.0,0.21704517]
[1643707328110,0.012519,38802.0,38770.0,0.2007]
[1643707328111,0.05,38796.0,38770.0,0.2007]
[1643707328310,0.05,38773.0,38768.0,0.008]
[1643707328507,0.6412,38787.0,38762.0,0.0026896]
[1643707328711,0.36637392,38786.0,38771.0,1.25]
[1643707328908,0.36637392,38786.0,38772.0,0.26016592]
[1643707328909,0.0513,38785.0,38772.0,0.26016592]
[1643707329105,0.34370101,38791.0,38773.0,0.26016592]
[1643707329106,0.1013,38791.0,38773.0,0.26016592]
[1643707329309,0.1,38777.0,38759.0,0.26016592]
[1643707329512,0.26016592,38776.0,38753.0,0.0643076]
[1643707329812,0.1,38787.0,38753.0,0.0643076]
[1643707329813,0.05,38775.0,38762.0,1.25]
[1643707330006,0.05,38788.0,38775.0,0.0011]
[1643707330208,0.1013,38788.0,38776.0,0.09096081]
[1643707330406,0.1013,38788.0,38775.0,0.0011]
[1643707330407,0.257964,38793.0,38775.0,0.0011]
[1643707330607,0.257964,38793.0,38757.0,0.0011]
[1643707330608,1.35,38791.0,38757.0,0.0011]
[1643707330805,0.257964,38793.0,38766.0,0.30782421]
[1643707330806,0.31146592,38790.0,38766.0,0.30782421]
[1643707331111,0.01832832,38788.0,38772.0,0.29543594]
[1643707331308,0.01832832,38788.0,38767.0,0.31146592]
[1643707331309,0.05,38783.0,38773.0,0.61115492]
[1643707331556,0.05,38780.0,38773.0,0.350989]
[1643707331708,0.01832832,38788.0,38767.0,0.54142397]
[1643707331709,0.02162314,38788.0,38767.0,0.54142397]
[1643707331965,0.05,38784.0,38768.0,0.26016592]
[1643707332165,0.05,38784.0,38768.0,0.55583692]
[1643707332360,0.05,38784.0,38774.0,0.0999]
[1643707332560,0.05,38784.0,38775.0,0.35520759]
[1643707332762,0.5,38795.0,38782.0,0.1]
[1643707332961,0.20082,38801.0,38776.0,1.25]
[1643707332962,0.25082,38801.0,38784.0,1.25]
[1643707333164,0.2004,38808.0,38787.0,0.01832832]
[1643707333367,0.05,38813.0,38787.0,0.01832832]
[1643707333368,0.05,38813.0,38810.0,0.31454403]
[1643707333563,0.31016592,38821.0,38818.0,0.08911359]
[1643707333761,0.26016592,38821.0,38818.0,0.08911359]
[1643707333962,0.01595776,38821.0,38818.0,0.08911359]
[1643707334161,0.26016592,38827.0,38819.0,0.0475]
[1643707334361,0.26016592,38827.0,38818.0,0.08911359]
[1643707334362,0.26016592,38826.0,38818.0,0.08911359]
[1643707334562,0.26016592,38837.0,38831.0,0.07865051]
[1643707334764,0.41016592,38838.0,38819.0,0.0475]
[1643707334966,0.41016592,38838.0,38820.0,0.0475]
[1643707334967,0.26016592,38838.0,38820.0,0.0475]
[1643707335163,0.26016592,38838.0,38812.0,0.32641661]
[1643707335164,0.26016592,38838.0,38821.0,0.0475]
[1643707335362,0.26016592,38838.0,38822.0,0.0475]
[1643707335610,0.26016592,38838.0,38797.0,0.2499]
[1643707335611,0.1,38825.0,38823.0,0.0186292]
[1643707335807,1.25,38823.0,38808.0,0.08909829]
[1643707336008,1.25,38823.0,38804.0,0.0475]
[1643707336211,0.064424,38820.0,38797.0,0.20306766]
[1643707336411,0.26016592,38819.0,38802.0,0.33047407]
[1643707336611,0.26016592,38819.0,38801.0,0.0999]
[1643707336612,0.32605241,38819.0,38801.0,0.0999]
[1643707336911,0.32605241,38819.0,38787.0,0.06582832]
[1643707336912,0.1,38811.0,38787.0,0.06582832]
[1643707337109,0.28277718,38807.0,38803.0,0.09381221]
[1643707337316,0.0012394,38804.0,38787.0,0.01832832]
[1643707337710,0.25034,38801.0,38787.0,0.01832832]
[1643707337909,0.30034,38801.0,38787.0,0.01832832]
[1643707338113,0.27355738,38799.0,38787.0,0.01832832]
[1643707338413,0.1,38799.0,38792.0,0.07463133]
[1643707338610,0.1,38799.0,38788.0,0.26070555]
[1643707338809,0.05,38798.0,38788.0,0.26070555]
[1643707339009,0.05,38798.0,38792.0,0.34361794]
[1643707339212,0.0012394,38804.0,38792.0,0.34361794]
[1643707339213,0.0012394,38804.0,38795.0,0.002]
[1643707339454,0.0012394,38804.0,38797.0,0.312463]
[1643707339660,9.4e-06,38804.0,38803.0,0.1]
[1643707339860,9.4e-06,38804.0,38803.0,0.75865492]
[1643707340057,9.4e-06,38804.0,38803.0,0.65865492]
[1643707340259,9.4e-06,38804.0,38803.0,0.398489]
[1643707340458,9.4e-06,38804.0,38803.0,0.65865492]
[1643707340659,0.82736359,38829.0,38827.0,6e-05]
[1643707340862,1.53033135,38828.0,38827.0,6e-05]
[1643707341060,0.28033135,38828.0,38815.0,0.26016592]
[1643707341364,0.28033135,38828.0,38814.0,0.0475]
[1643707341365,0.27858867,38828.0,38814.0,0.30766592]
[1643707341764,0.20064,38832.0,38814.0,0.30766592]
[1643707341959,0.00618794,38835.0,38826.0,0.24227204]
[1643707342161,0.00618794,38835.0,38825.0,0.0475]
[1643707342559,0.20082,38834.0,38825.0,0.0475]
[1643707343401,0.22174601,38834.0,38833.0,0.08932591]
[1643707343608,0.02092601,38834.0,38833.0,0.08932591]
[1643707344004,0.02092601,38834.0,38833.0,0.41399133]
[1643707344407,0.02092601,38834.0,38833.0,0.65031813]
[1643707344601,0.02092601,38834.0,38833.0,1.00130713]
[1643707345105,0.7565,38846.0,38833.0,1.00130713]
[1643707345106,0.2453,38848.0,38834.0,1.15]
[1643707345311,0.2453,38848.0,38835.0,0.70969565]
[1643707345506,0.2453,38848.0,38835.0,0.91276691]
[1643707345705,0.2453,38848.0,38835.0,0.25057126]
[1643707345706,0.02017914,38846.0,38835.0,0.25057126]
[1643707345905,0.02017914,38846.0,38835.0,0.0475]
[1643707346105,0.27061766,38843.0,38842.0,0.26539112]
[1643707346308,0.02017914,38846.0,38839.0,0.0475]
[1643707346508,0.02017914,38846.0,38836.0,0.0475]
[1643707346856,0.02017914,38846.0,38845.0,0.08806224]
[1643707347252,0.37017914,38846.0,38845.0,0.08806224]
[1643707347652,0.47017914,38846.0,38836.0,0.00134984]
[1643707347856,0.47017914,38846.0,38836.0,9.84e-06]
[1643707348056,0.1,38844.0,38836.0,9.84e-06]
[1643707348263,0.0475,38843.0,38823.0,0.00014386]
[1643707348456,0.20058,38839.0,38822.0,0.01643914]
[1643707348656,0.26651907,38839.0,38835.0,0.07912426]
[1643707348856,0.21651907,38839.0,38822.0,0.01643914]
[1643707349056,0.01593907,38839.0,38822.0,0.01643914]
[1643707349255,0.21669907,38839.0,38822.0,0.01643914]
[1643707349456,0.21669907,38839.0,38824.0,0.02131017]
[1643707349654,0.2131177,38833.0,38824.0,0.02131017]
[1643707350065,0.3131177,38833.0,38824.0,0.02131017]
[1643707350263,0.1,38829.0,38809.0,0.31164491]
[1643707350457,0.1475,38829.0,38809.0,0.31164491]
[1643707350700,0.1975,38829.0,38809.0,0.31164491]
[1643707350903,0.30004,38829.0,38822.0,0.22363957]
[1643707351102,0.30004,38829.0,38808.0,0.43512519]
[1643707351103,0.30004,38829.0,38827.0,0.08969317]
[1643707351302,0.1,38829.0,38827.0,0.08969317]
[1643707351508,0.05,38829.0,38828.0,0.31161926]
[1643707351702,0.00203269,38831.0,38828.0,0.35044]
[1643707351898,0.00203269,38831.0,38827.0,0.13719317]
[1643707352298,0.00203269,38831.0,38830.0,0.26382673]
[1643707352706,0.00203269,38831.0,38827.0,0.08969317]
[1643707353299,0.00203269,38831.0,38820.0,0.31161926]
[1643707353498,0.00203269,38831.0,38817.0,0.0506]
[1643707353499,0.00203269,38831.0,38819.0,0.02069003]
[1643707353702,0.00203269,38831.0,38821.0,0.31279687]
[1643707353898,0.00203269,38831.0,38822.0,0.26437344]
[1643707354348,0.00203269,38831.0,38826.0,0.0855973]
[1643707354549,0.05,38827.0,38826.0,0.0855973]
[1643707354748,0.00203269,38831.0,38826.0,0.0855973]
[1643707355150,0.00203269,38831.0,38820.0,0.20307126]
[1643707355356,0.00203269,38831.0,38819.0,0.02069003]
[1643707355357,0.064418,38827.0,38819.0,0.02069003]
[1643707355550,0.064418,38827.0,38819.0,0.03901879]
[1643707355749,0.064418,38827.0,38819.0,0.01832876]
[1643707355750,0.13024125,38827.0,38819.0,0.01832876]
[1643707355949,1.25,38823.0,38797.0,0.26052958]
[1643707356151,1.25,38823.0,38798.0,0.00014391]
[1643707356152,0.1,38821.0,38798.0,0.00014391]
[1643707356351,0.1,38815.0,38798.0,0.00014391]
[1643707356552,0.064437,38813.0,38798.0,0.00014391]
[1643707356748,0.064437,38813.0,38797.0,0.0022]
[1643707356749,0.111937,38813.0,38797.0,0.0022]
[1643707356949,0.312577,38813.0,38797.0,0.0022]
[1643707357151,0.161937,38813.0,38798.0,0.30032359]
[1643707357348,0.05,38812.0,38798.0,0.30032359]
[1643707358111,0.06584452,38812.0,38797.0,0.0022]
[1643707358302,0.06584452,38812.0,38803.0,0.08865047]
[1643707358303,0.26340052,38811.0,38803.0,0.08865047]
[1643707358803,0.31340052,38811.0,38797.0,0.0022]
[1643707359102,0.05,38811.0,38801.0,0.3279787]
[1643707359306,0.11584452,38812.0,38797.0,0.28066099]
[1643707359503,0.0182333,38811.0,38797.0,0.28066099]
[1643707359903,0.0182333,38811.0,38805.0,0.1014777]
[1643707360105,0.21191407,38809.0,38797.0,0.28066099]
[1643707360304,0.26191407,38809.0,38797.0,0.69472468]
[1643707360504,0.26191407,38809.0,38797.0,0.79472468]
[1643707360505,0.05,38809.0,38797.0,0.79472468]
[1643707360710,0.0182333,38811.0,38797.0,0.79472468]
[1643707360711,0.0182333,38811.0,38798.0,0.31161926]
[1643707360905,0.0182333,38811.0,38802.0,0.1]
[1643707361107,0.0182333,38811.0,38799.0,0.45044]
[1643707361108,0.0182333,38811.0,38800.0,0.31161926]
[1643707361305,0.0182333,38811.0,38797.0,0.0022]
[1643707361306,0.0657333,38811.0,38797.0,0.0022]
[1643707361712,0.00175228,38809.0,38797.0,0.0022]
[1643707362153,0.00175228,38809.0,38806.0,0.24585111]
[1643707362354,6.74926972,38800.0,38799.0,0.07521155]
[1643707362560,6.74926972,38800.0,38799.0,0.38818731]
[1643707362561,6.84926972,38800.0,38799.0,0.38818731]
[1643707362753,0.00175228,38809.0,38800.0,1.25]
[1643707362955,0.00175228,38809.0,38808.0,0.1]
[1643707363155,0.7412,38830.0,38808.0,0.80955926]
[1643707363356,0.7412,38830.0,38809.0,0.35044]
[1643707363357,0.9,38811.0,38809.0,0.35044]
[1643707363556,0.9,38811.0,38810.0,1.08715937]
[1643707363756,0.2509789,38829.0,38821.0,0.40170243]
[1643707363757,0.2759294,38828.0,38821.0,0.40170243]
[1643707363960,0.2759294,38828.0,38811.0,1.64277919]
[1643707363961,0.2759294,38828.0,38822.0,0.35044]
[1643707364259,0.015852,38831.0,38819.0,0.31161926]
[1643707364461,0.015852,38831.0,38820.0,0.0475]
[1643707364657,0.015852,38831.0,38822.0,0.09080767]
[1643707364855,0.015852,38831.0,38823.0,0.0475]
[1643707365058,0.015852,38831.0,38824.0,0.38269747]
[1643707365256,0.015852,38831.0,38824.0,0.7581038]
[1643707365459,0.015852,38831.0,38825.0,0.35044]
[1643707365703,0.17403965,38842.0,38826.0,0.35812644]
[1643707365909,0.25415689,38838.0,38832.0,0.08840384]
[1643707366104,0.01669998,38835.0,38833.0,0.32838489]
[1643707366305,0.01669998,38835.0,38834.0,0.35044]
[1643707366504,0.01669998,38835.0,38830.0,0.31847639]
[1643707366702,0.01669998,38835.0,38828.0,0.33652106]
[1643707366903,0.01669998,38835.0,38829.0,0.39794]
[1643707367108,1.25,38833.0,38820.0,0.0475]
[1643707367305,1.25,38833.0,38812.0,0.00014391]
[1643707367306,0.25206131,38823.0,38812.0,0.00014391]
[1643707367510,0.24853256,38817.0,38808.0,0.28302723]
[1643707367708,0.31962652,38828.0,38809.0,0.350528]
[1643707367904,0.05,38817.0,38808.0,0.33052723]
[1643707368103,0.49366617,38832.0,38808.0,0.33052723]
[1643707368104,0.08160733,38820.0,38811.0,0.41064546]
[1643707368302,0.05,38827.0,38812.0,0.350528]
[1643707368505,0.28870216,38824.0,38814.0,0.05]
[1643707368703,0.26157725,38821.0,38815.0,0.28796808]
[1643707369104,0.36157725,38821.0,38814.0,0.05]
[1643707369564,0.36157725,38821.0,38803.0,0.0975]
[1643707369763,0.36157725,38821.0,38804.0,0.350528]
[1643707369967,0.08741206,38815.0,38809.0,0.30989327]
[1643707370167,0.13741206,38815.0,38809.0,0.30989327]
[1643707370365,0.18733234,38815.0,38809.0,0.3933359]
[1643707370564,0.18733234,38815.0,38810.0,0.350528]
[1643707370765,0.18733234,38815.0,38803.0,0.05]
[1643707370971,0.18733234,38815.0,38804.0,0.350528]
[1643707371175,0.18733234,38815.0,38803.0,0.05]
[1643707371365,0.08197833,38806.0,38803.0,0.05]
[1643707371566,0.08197833,38806.0,38801.0,0.37575095]
[1643707371767,0.13197833,38806.0,38802.0,0.350528]
[1643707371967,0.13197833,38806.0,38801.0,0.37575095]
[1643707372166,0.1,38806.0,38801.0,0.42575095]
[1643707372566,0.02176673,38815.0,38802.0,0.350528]
[1643707372768,0.24969983,38813.0,38801.0,0.05]
[1643707372968,0.34908985,38812.0,38797.0,0.0022]
[1643707373205,0.10165848,38808.0,38797.0,0.0022]
[1643707373401,0.11740101,38808.0,38801.0,0.28327837]
[1643707373604,0.21740101,38808.0,38801.0,0.28327837]
[1643707374001,0.11574253,38808.0,38801.0,0.28327837]
[1643707374505,0.06574253,38808.0,38801.0,0.28327837]
[1643707374702,0.32157169,38809.0,38801.0,0.28327837]
[1643707374703,0.1,38809.0,38801.0,0.28327837]
[1643707374906,0.00224917,38815.0,38801.0,0.28327837]
[1643707374907,0.00224917,38815.0,38802.0,0.350528]
[1643707375104,0.00224917,38815.0,38802.0,0.30329995]
[1643707375305,0.01803393,38815.0,38804.0,0.08114319]
[1643707375503,0.01803393,38815.0,38805.0,0.34546679]
[1643707375703,0.00224917,38815.0,38808.0,0.23253961]
[1643707376104,0.02112536,38812.0,38808.0,0.23253961]
[1643707376507,0.53995349,38816.0,38808.0,0.51256948]
[1643707376508,0.00224778,38813.0,38808.0,0.51256948]
[1643707376705,0.00224778,38813.0,38808.0,0.23253961]
[1643707376953,0.00224778,38813.0,38808.0,0.50274094]
[1643707377754,0.00224778,38813.0,38808.0,0.23253961]
[1643707377955,0.00224778,38813.0,38808.0,0.50197984]
[1643707378156,0.00224778,38813.0,38808.0,0.23253961]
[1643707378354,0.00216968,38813.0,38808.0,0.50090036]
[1643707378554,0.00216968,38813.0,38808.0,0.50540298]
[1643707379157,0.00216968,38813.0,38809.0,0.350528]
[1643707379360,0.00216968,38813.0,38806.0,0.27489996]
[1643707379561,0.350528,38812.0,38797.0,0.0022]
[1643707379760,0.16660637,38813.0,38797.0,0.0022]
[1643707380163,0.11660637,38813.0,38797.0,0.0022]
[1643707380362,0.36191777,38807.0,38799.0,0.25837157]
[1643707380610,0.46191777,38807.0,38800.0,0.31603516]
[1643707381004,0.46191777,38807.0,38798.0,0.31493516]
[1643707381207,0.46191777,38807.0,38788.0,0.0011]
[1643707381208,1.25,38804.0,38788.0,0.0011]
[1643707381409,1.25,38804.0,38787.0,0.0011]
[1643707381410,0.81406316,38803.0,38787.0,0.0011]
[1643707381806,0.05,38789.0,38787.0,0.0011]
[1643707382105,0.31335362,38789.0,38787.0,0.0011]
[1643707382307,0.36335362,38789.0,38787.0,0.0011]
[1643707382707,0.350528,38788.0,38787.0,0.0011]
[1643707384006,0.398028,38788.0,38787.0,0.0011]
[1643707384456,0.398028,38788.0,38780.0,0.0042]
[1643707384457,0.75335302,38788.0,38780.0,0.0042]
[1643707384658,0.25600799,38783.0,38780.0,0.0031]
[1643707384859,0.27658086,38781.0,38780.0,0.0031]
[1643707385062,0.05,38782.0,38780.0,0.0031]
[1643707385460,0.850528,38781.0,38780.0,0.0031]
[1643707385657,0.350528,38781.0,38780.0,0.0031]
[1643707385859,0.71748387,38781.0,38780.0,0.0031]
[1643707386057,0.66801187,38781.0,38780.0,0.0031]
[1643707386258,1.07891959,38781.0,38780.0,0.0031]
[1643707386559,1.08072246,38781.0,38780.0,0.0031]
[1643707390000,0.81323859,38781.0,38780.0,0.0031]
[1643707391019,1.25,38780.0,38775.0,0.0011]
[1643707391204,0.350528,38779.0,38775.0,0.0011]
[1643707391402,0.42581855,38778.0,38775.0,0.0011]
[1643707391604,0.60282818,38777.0,38775.0,0.0011]
[1643707391852,0.0475,38776.0,38775.0,0.0011]
[1643707392055,0.398028,38776.0,38775.0,0.0011]
[1643707392251,0.448028,38776.0,38775.0,0.0011]
[1643707393051,0.8,38775.0,38762.0,0.0016]
[1643707393251,0.350528,38774.0,38762.0,0.0016]
[1643707393453,0.37019215,38773.0,38762.0,0.0016]
[1643707393650,0.08316971,38764.0,38762.0,0.0016]
[1643707393851,0.28814718,38763.0,38762.0,0.0016]
[1643707394050,0.13316971,38764.0,38762.0,0.0016]
[1643707394253,0.18316971,38764.0,38762.0,0.0016]
[1643707394655,0.09992196,38764.0,38762.0,0.0016]
[1643707394851,0.2675,38776.0,38762.0,0.0016]
[1643707395054,0.27331139,38772.0,38766.0,0.05]
[1643707395251,0.32331139,38772.0,38766.0,0.05]
[1643707395452,0.27331139,38772.0,38766.0,0.05]
[1643707395705,0.07962151,38770.0,38766.0,0.05]
[1643707395906,0.0475,38776.0,38766.0,0.05]
[1643707396107,0.22684172,38775.0,38766.0,0.05]
[1643707396304,0.00188111,38781.0,38766.0,0.05]
[1643707396705,0.00187549,38772.0,38766.0,0.05]
[1643707397703,0.00187549,38772.0,38767.0,0.01693814]
[1643707397907,0.00187549,38772.0,38767.0,0.309824]
[1643707398106,0.0982492,38770.0,38767.0,0.309824]
[1643707398307,0.00187549,38772.0,38768.0,0.1]
[1643707398612,0.00187549,38772.0,38769.0,0.400528]
[1643707398806,0.00187549,38772.0,38769.0,0.448028]
[1643707399208,7.549e-05,38772.0,38770.0,0.1]
[1643707399460,0.31603516,38791.0,38773.0,0.1]
[1643707399656,0.31603516,38791.0,38776.0,0.05]
[1643707399861,1.09253516,38801.0,38777.0,0.0475]
[1643707400058,0.24612134,38792.0,38777.0,0.0475]
[1643707400257,0.24612134,38792.0,38779.0,0.30004951]
[1643707400459,0.24612134,38792.0,38786.0,0.22901486]
[1643707400758,0.30334117,38794.0,38788.0,0.05]
[1643707400960,0.85668027,38801.0,38788.0,0.05]
[1643707401158,0.79222419,38801.0,38788.0,0.05]
[1643707401555,0.00174374,38792.0,38788.0,0.05]
[1643707401758,0.00174374,38792.0,38789.0,0.0475]
[1643707402857,0.00166496,38792.0,38789.0,0.0475]
[1643707403300,0.0183585,38794.0,38789.0,0.0475]
[1643707403497,0.0183585,38794.0,38790.0,0.350528]
[1643707403697,0.0183585,38794.0,38791.0,0.0968706]
[1643707403998,0.0183585,38794.0,38792.0,0.350528]
[1643707404197,0.0183585,38794.0,38789.0,0.0475]
[1643707404600,0.22587227,38799.0,38789.0,0.0475]
[1643707404799,0.79222419,38801.0,38789.0,0.1329427]
[1643707405002,0.79222419,38801.0,38795.0,0.28359842]
[1643707405401,0.017,38800.0,38797.0,0.05]
[1643707406102,0.017,38800.0,38798.0,0.0475]
[1643707406305,0.017,38800.0,38799.0,0.650528]
[1643707406503,0.017,38800.0,38799.0,0.398028]
[1643707406858,0.017,38800.0,38799.0,0.498028]
[1643707408258,0.017,38800.0,38799.0,0.86088042]
[1643707408458,0.017,38800.0,38799.0,0.94490425]
[1643707408858,0.017,38800.0,38799.0,0.81088042]
[1643707409059,0.017,38800.0,38799.0,0.71088042]
[1643707409260,0.017,38800.0,38799.0,0.398028]
[1643707409660,0.017,38800.0,38799.0,0.0475]
[1643707409861,0.0806138,38799.0,38797.0,0.05]
[1643707410062,0.3429453,38800.0,38797.0,0.05]
[1643707410704,0.067,38800.0,38798.0,0.0475]
[1643707410907,0.017,38800.0,38799.0,0.350528]
[1643707411106,0.01691974,38800.0,38799.0,0.71088042]
[1643707411402,0.01691974,38800.0,38799.0,0.70234611]
[1643707411605,0.01691974,38800.0,38799.0,0.40234611]
[1643707411803,0.01691974,38800.0,38799.0,0.50234611]
[1643707412001,0.01691974,38800.0,38799.0,0.40234611]
[1643707412208,0.01691974,38800.0,38799.0,0.71519853]
[1643707412406,0.01691974,38800.0,38799.0,0.86519853]
[1643707412610,0.01691974,38800.0,38799.0,0.55234611]
[1643707412806,0.79306185,38818.0,38801.0,0.9]
[1643707413106,0.12882131,38826.0,38811.0,0.30590489]
[1643707413107,0.23713502,38826.0,38811.0,0.30590489]
[1643707413310,1.5162,38833.0,38812.0,0.46035242]
[1643707413503,0.7385,38834.0,38812.0,0.46035242]
[1643707413504,0.07369666,38831.0,38819.0,0.09520979]
[1643707413704,0.07369666,38831.0,38824.0,0.30277188]
[1643707413705,0.33044559,38831.0,38824.0,0.30277188]
[1643707413906,0.25674893,38831.0,38825.0,0.05]
[1643707414111,0.27262561,38831.0,38825.0,0.05]
[1643707414356,0.20622812,38836.0,38825.0,0.36285242]
[1643707414357,0.06438805,38835.0,38825.0,0.36285242]
[1643707414560,0.00618812,38836.0,38825.0,0.36285242]
[1643707414561,0.00618812,38836.0,38826.0,0.3982]
[1643707414757,0.18956203,38838.0,38827.0,0.31285242]
[1643707414957,0.0989871,38835.0,38827.0,0.36035242]